[Event "II Open Internacional Ateneo Marítimo (60 Aniversario)"]
[Site "C/La reina 68 (Valencia), Spain"]
[Date "2018.09.15"]
[Round "7.7"]
[White "Leon Colan, Carlos Edmundo"]
[Black "Granero Roca, Antonio"]
[Result "1/2-1/2"]
[TimeControl "7m+3s por jugada"]
[WhiteFideId "3810364"]
[BlackFideId "2210509"]
[WhiteElo "1975"]
[BlackElo "2370"]

1. d4 {[%clk 00:07:04]} Nf6 {[%clk 00:07:05]} 2. g3 {[%clk 00:07:07]} g6 {[%clk
00:07:06]} 3. Bg2 {[%clk 00:07:09]} Bg7 {[%clk 00:07:07]} 4. e4 {[%clk
00:07:10]} d6 {[%clk 00:07:09]} 5. Ne2 {[%clk 00:07:11]} {[%emt 00:00:03]} O-O
{[%clk 00:07:10]} 6. c3 {[%clk 00:07:13]} c5 {[%clk 00:07:11]} 7. O-O {[%clk
00:07:14]} {[%emt 00:00:04]} Nc6 {[%clk 00:07:11]} {[%emt 00:00:06]} 8. a3
{[%clk 00:07:16]} e5 {[%clk 00:07:09]} 9. d5 {[%clk 00:07:17]} {[%emt
00:00:04]} Ne7 {[%clk 00:07:10]} {[%emt 00:00:03]} 10. b4 {[%clk 00:07:11]}
{[%emt 00:00:09]} Nd7 {[%clk 00:07:11]} {[%emt 00:00:03]} 11. f3 {[%clk
00:06:56]} {[%emt 00:00:12]} f5 {[%clk 00:07:11]} {[%emt 00:00:17]} 12. Be3
{[%clk 00:06:58]} b6 {[%clk 00:07:13]} 13. c4 {[%clk 00:06:58]} Nf6 {[%clk
00:07:00]} {[%emt 00:00:07]} 14. Nd2 {[%clk 00:06:54]} {[%emt 00:00:20]} fxe4
{[%clk 00:07:00]} 15. Nxe4 {[%clk 00:06:51]} Nf5 {[%clk 00:07:02]} {[%emt
00:00:24]} 16. Nxf6+ {[%clk 00:06:35]} Qxf6 {[%clk 00:06:35]} {[%emt 00:01:19]}
17. Bf2 {[%clk 00:06:29]} e4 {[%clk 00:06:18]} 18. fxe4 {[%clk 00:06:07]}
{[%emt 00:00:03]} Qxa1 {[%clk 00:06:19]} 19. Qxa1 {[%clk 00:06:08]} {[%emt
00:00:03]} Bxa1 {[%clk 00:06:21]} 20. Rxa1 {[%clk 00:06:10]} {[%emt 00:00:08]}
Ne7 {[%clk 00:06:22]} 21. Nc3 {[%clk 00:06:05]} {[%emt 00:00:04]} Bd7 {[%clk
00:06:20]} {[%emt 00:00:04]} 22. h3 {[%clk 00:05:57]} {[%emt 00:00:07]} Rae8
{[%clk 00:06:12]} {[%emt 00:00:30]} 23. g4 {[%clk 00:05:55]} Nc8 {[%clk
00:05:22]} {[%emt 00:00:40]} 24. Bg3 {[%clk 00:05:48]} {[%emt 00:00:21]} g5
{[%clk 00:05:23]} 25. Re1 {[%clk 00:05:44]} Rf7 {[%clk 00:05:11]} {[%emt
00:00:16]} 26. e5 {[%clk 00:05:26]} {[%emt 00:00:22]} dxe5 {[%clk 00:05:08]}
{[%emt 00:00:04]} 27. Rxe5 {[%clk 00:05:18]} {[%emt 00:00:09]} Rxe5 {[%clk
00:05:06]} {[%emt 00:00:14]} 28. Bxe5 {[%clk 00:05:20]} Re7 {[%clk 00:05:06]}
29. Bf6 {[%clk 00:05:10]} {[%emt 00:00:08]} Re3 {[%clk 00:05:05]} {[%emt
00:00:29]} 30. bxc5 {[%clk 00:05:05]} {[%emt 00:00:14]} bxc5 {[%clk 00:05:01]}
31. Kf2 {[%clk 00:05:05]} Re8 {[%clk 00:04:35]} {[%emt 00:00:08]} 32. Ne4
{[%clk 00:04:58]} {[%emt 00:00:33]} Nb6 {[%clk 00:04:33]} 33. Bxg5 {[%clk
00:04:39]} {[%emt 00:00:15]} Rf8+ {[%clk 00:04:35]} 34. Kg3 {[%clk 00:04:39]}
Kg7 {[%clk 00:04:14]} {[%emt 00:00:42]} 35. Be7 {[%clk 00:04:29]} Re8 {[%clk
00:03:56]} {[%emt 00:00:11]} 36. Bxc5 {[%clk 00:04:13]} {[%emt 00:00:25]} Nxc4
{[%clk 00:03:57]} 37. Bd4+ {[%clk 00:04:08]} {[%emt 00:00:08]} Kf7 {[%clk
00:03:31]} {[%emt 00:00:23]} 38. Bxa7 {[%clk 00:04:00]} {[%emt 00:00:18]} Ra8
{[%clk 00:03:21]} {[%emt 00:00:10]} 39. Bc5 {[%clk 00:03:51]} {[%emt 00:00:30]}
Nxa3 {[%clk 00:03:21]} {[%emt 00:00:12]} 40. h4 {[%clk 00:03:44]} Ra5 {[%clk
00:03:13]} 41. Bb4 {[%clk 00:03:25]} {[%emt 00:00:14]} Ra4 {[%clk 00:03:12]}
{[%emt 00:00:04]} 42. Bd6 {[%clk 00:03:07]} {[%emt 00:00:28]} Nc4 {[%clk
00:03:02]} {[%emt 00:00:10]} 43. Ng5+ {[%clk 00:03:00]} {[%emt 00:00:12]} Kg8
{[%clk 00:03:01]} 44. Bf4 {[%clk 00:02:43]} {[%emt 00:00:18]} Ra3+ {[%clk
00:02:59]} {[%emt 00:00:11]} 45. Bf3 {[%clk 00:02:38]} {[%emt 00:00:03]} Nb6
{[%clk 00:02:46]} {[%emt 00:00:15]} 46. d6 {[%clk 00:02:25]} {[%emt 00:00:14]}
Bc6 {[%clk 00:02:46]} {[%emt 00:00:33]} 47. Kf2 {[%clk 00:02:16]} {[%emt
00:00:03]} Ra2+ {[%clk 00:02:47]} 48. Ke1 {[%clk 00:02:12]} Ra1+ {[%clk
00:02:42]} {[%emt 00:00:10]} 49. Kf2 {[%clk 00:02:12]} Ra2+ {[%clk 00:02:41]}
50. Kg3 {[%clk 00:02:09]} Ra3 {[%clk 00:02:42]} {[%emt 00:00:03]} 51. Kf2
{[%clk 00:01:57]} {[%emt 00:00:12]} Bd7 {[%clk 00:02:44]} {[%emt 00:00:45]} 52.
Be3 {[%clk 00:01:52]} Rb3 {[%clk 00:02:24]} 53. Ne4 {[%clk 00:01:47]} Kf7
{[%clk 00:02:00]} {[%emt 00:00:29]} 54. Nc5 {[%clk 00:01:45]} Rb2+ {[%clk
00:02:02]} {[%emt 00:00:19]} 55. Kg3 {[%clk 00:01:47]} Rc2 {[%clk 00:01:42]}
{[%emt 00:00:13]} 56. g5 {[%clk 00:01:38]} {[%emt 00:00:05]} Rc3 {[%clk
00:01:41]} {[%emt 00:00:16]} 57. Kf4 {[%clk 00:01:30]} Rc4+ {[%clk 00:01:38]}
{[%emt 00:00:05]} 58. Ke5 {[%clk 00:01:21]} {[%emt 00:00:21]} Rc3 {[%clk
00:01:29]} {[%emt 00:00:03]} 59. Kf4 {[%clk 00:01:15]} {[%emt 00:00:10]} Rc4+
{[%clk 00:01:20]} {[%emt 00:00:09]} 60. Ke5 {[%clk 00:01:11]} {[%emt 00:03:37]}
Rb4 {[%clk 00:01:18]} 61. Bh5+ {[%clk 00:01:11]} Kf8 {[%clk 00:01:17]} 62. g6
{[%clk 00:01:09]} hxg6 {[%clk 00:01:19]} 63. Bh6+ {[%clk 00:01:09]} Kg8 {[%clk
00:01:19]} 64. Bxg6 {[%clk 00:01:06]} Rb5 {[%clk 00:01:16]} 65. Be3 {[%clk
00:01:07]} Nc4+ {[%clk 00:01:17]} 66. Kf6 {[%clk 00:01:00]} Nxe3 {[%clk
00:01:03]} 67. Nxd7 {[%clk 00:00:54]} Nd5+ {[%clk 00:01:03]} 68. Ke6 {[%clk
00:00:54]} Nf4+ {[%clk 00:01:03]} 69. Kf6 {[%clk 00:00:52]} Nd5+ {[%clk
00:00:53]} 70. Ke6 {[%clk 00:00:52]} Kg7 {[%clk 00:00:53]} 71. Be4 {[%clk
00:00:47]} Nf4+ {[%clk 00:00:43]} 72. Ke7 {[%clk 00:00:48]} Rb2 {[%clk
00:00:37]} 73. Nc5 {[%clk 00:00:45]} Rd2 {[%clk 00:00:16]} 74. d7 {[%clk
00:00:45]} Ng6+ {[%clk 00:00:07]} 75. Ke8 {[%clk 00:00:29]} Rxd7 {[%clk
00:00:06]} {[%emt 00:00:12]} 76. Nxd7 Nxh4 {[%clk 00:00:08]} 77. Ke7 {[%clk
00:00:31]} Ng6+ {[%clk 00:00:08]} 78. Ke6 {[%clk 00:00:30]} Nf8+ {[%clk
00:00:10]} 79. Nxf8 {[%clk 00:00:29]} Kxf8 {[%clk 00:00:12]} 80. Ke5 {[%emt
00:00:07]} Ke8 {[%emt 00:00:03]} 1/2-1/2